fUSD/lending_fUSD_20260202
["ID","MTS","AMOUNT","RATE_DAILY","PERIOD"]
[404247683,1770000640743,-1014.48996591,0.00016438,2]
[404247684,1770000640753,-1014.48996591,0.00016438,2]
[404247685,1770000640765,-1014.48996591,0.00016438,2]
[404247686,1770000640776,-1014.48996591,0.00016438,2]
[404247687,1770000640784,-1014.48996591,0.00016438,2]
[404247688,1770000640794,-1014.48996591,0.00016438,2]
[404247689,1770000640804,-1014.48996591,0.00016438,2]
[404247690,1770000640813,-1014.48996591,0.00016438,2]
[404247691,1770000640822,-1014.48996591,0.00016438,2]
[404247692,1770000640832,-1014.48996591,0.00016438,2]
[404247693,1770000640843,-1014.48996591,0.00016438,2]
[404247694,1770000640853,-1014.48996591,0.00016438,2]
[404247695,1770000640862,-1014.48996591,0.00016438,2]
[404247696,1770000640871,-1014.48996591,0.00016438,2]
[404247697,1770000640882,-1014.48996591,0.00016438,2]
[404247698,1770000640892,-1014.48996591,0.00016438,2]
[404247699,1770000640902,-1014.48996591,0.00016438,2]
[404247700,1770000640911,-1014.48996591,0.00016438,2]
[404247701,1770000640920,-1014.48996591,0.00016438,2]
[404247702,1770000640930,-1014.48996591,0.00016438,2]
[404247703,1770000640939,-1014.48996591,0.00016438,2]
[404247704,1770000640949,-1014.48996591,0.00016438,2]
[404247705,1770000640959,-1014.48996591,0.00016438,2]
[404247706,1770000640969,-1014.48996591,0.00016438,2]
[404247707,1770000640978,-1014.48996591,0.00016438,2]
[404247708,1770000640988,-1014.48996591,0.00016438,2]
[404247709,1770000640998,-1014.48996591,0.00016438,2]
[404247710,1770000641009,-1014.48996591,0.00016438,2]
[404247711,1770000641019,-1014.48996591,0.00016438,2]
[404247712,1770000641029,-1014.48996591,0.00016438,2]
[404247713,1770000641049,-1014.48996591,0.00016438,2]
[404247714,1770000641060,-1014.48996591,0.00016438,2]
[404247715,1770000641070,-1014.48996591,0.00016438,2]
[404247716,1770000641080,-1014.48996591,0.00016438,2]
[404247717,1770000641090,-1014.48996591,0.00016438,2]
[404247718,1770000641099,-1014.48996591,0.00016438,2]
[404247719,1770000641109,-1014.48996591,0.00016438,2]
[404247720,1770000641118,-1014.48996591,0.00016438,2]
[404247721,1770000641128,-1014.48996591,0.00016438,2]
[404247722,1770000641138,-1014.48996591,0.00016438,2]
[404247723,1770000641149,-1014.48996591,0.00016438,2]
[404247724,1770000641159,-1014.48996591,0.00016438,2]
[404247725,1770000641168,-1014.48996591,0.00016438,2]
[404247726,1770000641178,-1014.48996591,0.00016438,2]
[404247727,1770000641187,-1014.48996591,0.00016438,2]
[404247728,1770000641197,-1014.48996591,0.00016438,2]
[404247729,1770000641207,-1014.48996591,0.00016438,2]
[404247730,1770000641216,-1014.48996591,0.00016438,2]
[404247731,1770000641225,-1014.48996591,0.00016438,2]
[404247732,1770000641235,-1014.48996591,0.00016438,2]
[404247733,1770000641245,-1014.48996591,0.00016438,2]
[404247734,1770000641255,-1014.48996591,0.00016438,2]
[404247735,1770000641266,-1014.48996591,0.00016438,2]
[404247736,1770000641276,-1014.48996591,0.00016438,2]
[404247737,1770000641286,-1014.48996591,0.00016438,2]
[404247738,1770000641297,-1014.48996591,0.00016438,2]
[404247739,1770000641306,-1014.48996591,0.00016438,2]
[404247740,1770000641315,-1014.48996591,0.00016438,2]
[404247741,1770000641331,-2799.29670582,0.00016438,2]
[404247742,1770000641352,-2799.29670582,0.00016438,2]
[404247743,1770000641369,-2799.29670582,0.00016438,2]
[404247744,1770000641381,-2799.29670582,0.00016438,2]
[404247745,1770000641391,-2799.29670582,0.00016438,2]
[404247746,1770000641402,-2799.29670582,0.00016438,2]
[404247747,1770000641413,-2799.29670582,0.00016438,2]
[404247748,1770000641423,-2799.29670582,0.00016438,2]
[404247749,1770000641435,-2799.29670582,0.00016438,2]
[404247750,1770000641445,-2799.29670582,0.00016438,2]
[404247751,1770000641456,-2799.29670582,0.00016438,2]
[404247752,1770000641466,-2799.29670582,0.00016438,2]
[404247753,1770000641476,-2799.29670582,0.00016438,2]
[404247754,1770000641486,-2799.29670582,0.00016438,2]
[404247755,1770000641496,-2799.29670582,0.00016438,2]
[404247756,1770000641507,-2799.29670582,0.00016438,2]
[404247757,1770000641519,-2799.29670582,0.00016438,2]
[404247758,1770000641530,-2799.29670577,0.00016438,2]
[404247759,1770000641539,-1872.11781497,0.00016438,2]
[404247760,1770000641550,-250.55733734,0.00016438,2]
[404247761,1770000641559,-800.78453244,0.00016438,2]
[404247762,1770000641570,-11994.31318354,0.00016448,2]
[404247763,1770000641580,-244.94939722,0.00016481,2]
[404247764,1770000641589,-500.0,0.00016521,2]
[404247765,1770000641600,-159.04434353,0.00016528,2]
[404247766,1770000641611,-176.11,0.00016548,2]
[404247767,1770000641621,-479.97,0.00016548,2]
[404247768,1770000641630,-344.98,0.00016548,2]
[404247769,1770000641642,-172.49,0.00016548,2]
[404247770,1770000641653,-180.25,0.00016548,2]
[404247771,1770000641663,-469.44,0.00016548,2]
[404247772,1770000641673,-865.02843818,0.00016561,2]
[404247773,1770000641682,-731.06,0.00016629,2]
[404247774,1770000641694,-163.0,0.0001672,2]
[404247775,1770000641704,-163.0,0.0001672,2]
[404247776,1770000641715,-501.02558099,0.00016763,2]
[404247777,1770000641724,-896.81248005,0.00016763,2]
[404247778,1770000641733,-1000.0,0.00016763,2]
[404247779,1770000641742,-1000.0,0.00016763,2]
[404247780,1770000641751,-1000.0,0.00016763,2]
[404247781,1770000641760,-1002.81173723,0.00016763,2]
[404247782,1770000641769,-1000.0,0.00016763,2]
[404247783,1770000641778,-1000.0,0.00016763,2]
[404247784,1770000641787,-1000.0,0.00016763,2]
[404247785,1770000641797,-1000.0,0.00016763,2]
[404247786,1770000641806,-1000.0,0.00016763,2]
[404247787,1770000641816,-1000.0,0.00016763,2]
[404247788,1770000641826,-1000.0,0.00016763,2]
[404247789,1770000641835,-500.89784707,0.00016763,2]
[404247790,1770000641844,-1000.0,0.00016763,2]
[404247791,1770000641853,-1000.0,0.00016763,2]
[404247792,1770000641863,-486.90150068,0.00016763,2]
[404247793,1770000641873,-464.35211832,0.00016763,2]
[404247794,1770000641882,-1000.0,0.00016763,2]
[404247795,1770000641890,-1001.09302375,0.00016763,2]
[404247796,1770000641900,-1000.0,0.00016763,2]
[404247797,1770000641910,-1002.35695832,0.00016763,2]
[404247798,1770000641919,-500.89178293,0.00016763,2]
[404247799,1770000641930,-1000.0,0.00016763,2]
[404247800,1770000641939,-1000.0,0.00016763,2]
[404247801,1770000641950,-1000.0,0.00016763,2]
[404247802,1770000641959,-1086.45296103,0.00016763,2]
[404247803,1770000641969,-1000.0,0.00016763,2]
[404247804,1770000641978,-1000.0,0.00016763,2]
[404247805,1770000641987,-200.70028911,0.00016763,2]
[404247806,1770000641997,-1000.0,0.00016763,2]
[404247807,1770000642007,-1000.0,0.00016763,2]
[404247808,1770000642016,-1000.0,0.00016763,2]
[404247809,1770000642025,-1000.0,0.00016763,2]
[404247810,1770000642035,-1001.08336444,0.00016763,2]
[404247811,1770000642044,-550.09529227,0.00016763,2]
[404247812,1770000642053,-1000.0,0.00016763,2]
[404247813,1770000642062,-1000.0,0.00016763,2]
[404247814,1770000642072,-1017.01569061,0.00016763,2]
[404247815,1770000642081,-1000.0,0.00016763,2]
[404247816,1770000642091,-1000.0,0.00016763,2]
[404247817,1770000642100,-185.46503654,0.00016763,2]
[404247818,1770000642109,-1000.0,0.00016763,2]
[404247819,1770000642118,-1000.0,0.00016763,2]
[404247820,1770000642127,-1000.0,0.00016763,2]
[404247821,1770000642136,-291.61164288,0.00016763,2]
[404247822,1770000642145,-1000.0,0.00016763,2]
[404247823,1770000642155,-865.02843818,0.00016784,2]
[404247824,1770000642164,-178.1040154,0.00016811,2]
[404247825,1770000642173,-1000.0,0.00016818,2]
[404247826,1770000642182,-154.87,0.0001691,2]
[404247827,1770000642191,-3412.42,0.00016922,2]
[404247828,1770000642200,-150.99,0.00016922,2]
[404247829,1770000642210,-218.24,0.00016922,2]
[404247830,1770000642220,-500.0,0.00016923,2]
[404247831,1770000642229,-7958.92687391,0.00016932,2]
[404247832,1770000642239,-11994.31318354,0.00016932,2]
[404247833,1770000642248,-1000.0,0.00016986,2]
[404247834,1770000642257,-865.02843818,0.00017007,2]
[404247835,1770000642266,-163.0,0.0001704,2]
[404247836,1770000642275,-269.0,0.0001704,2]
[404247837,1770000642285,-150.00017216,0.00017075,2]
[404247838,1770000642294,-250.0,0.00017099,2]
[404247839,1770000642304,-500.0,0.00017099,2]
[404247840,1770000642313,-250.0,0.00017099,2]
[404247841,1770000642322,-250.0,0.00017099,2]
[404247842,1770000642331,-500.0,0.00017099,2]
[404247843,1770000642340,-721.12765535,0.00017099,2]
[404247844,1770000642350,-168.90333538,0.00017099,2]
[404247845,1770000642359,-250.0,0.00017099,2]
[404247846,1770000642368,-250.0,0.00017099,2]
[404247847,1770000642377,-500.0,0.00017099,2]
[404247848,1770000642387,-500.0,0.00017099,2]
[404247849,1770000642398,-250.0,0.00017099,2]
[404247850,1770000642407,-151.0,0.00017099,2]
[404247851,1770000642417,-250.0,0.00017099,2]
[404247852,1770000642427,-500.0,0.00017099,2]
[404247853,1770000642438,-500.0,0.00017099,2]
[404247854,1770000642447,-250.0,0.00017099,2]
[404247855,1770000642457,-151.0,0.00017099,2]
[404247856,1770000642466,-250.0,0.00017099,2]
[404247857,1770000642475,-500.0,0.00017099,2]
[404247858,1770000642486,-500.0,0.00017099,2]
[404247859,1770000642495,-250.0,0.00017099,2]
[404247860,1770000642504,-151.0,0.00017099,2]
[404247861,1770000642513,-500.0,0.00017099,2]
[404247862,1770000642522,-500.0,0.00017099,2]
[404247863,1770000642531,-250.0,0.00017099,2]
[404247864,1770000642540,-250.0,0.00017099,2]
[404247865,1770000642551,-151.0,0.00017099,2]
[404247866,1770000642560,-500.0,0.00017099,2]
[404247867,1770000642569,-500.0,0.00017099,2]
[404247868,1770000642578,-250.0,0.00017099,2]
[404247869,1770000642588,-250.0,0.00017099,2]
[404247870,1770000642597,-151.0,0.00017099,2]
[404247871,1770000642606,-500.0,0.00017099,2]
[404247872,1770000642617,-500.0,0.00017099,2]
[404247873,1770000642627,-250.0,0.00017099,2]
[404247874,1770000642637,-250.0,0.00017099,2]
[404247875,1770000642650,-151.0,0.00017099,2]
[404247876,1770000642662,-500.0,0.00017099,2]
[404247877,1770000642671,-500.0,0.00017099,2]
[404247878,1770000642683,-250.0,0.00017099,2]
[404247879,1770000642694,-250.0,0.00017099,2]
[404247880,1770000642704,-151.0,0.00017099,2]
[404247881,1770000642714,-500.0,0.00017099,2]
[404247882,1770000642725,-500.0,0.00017099,2]
[404247883,1770000642736,-250.0,0.00017099,2]
[404247884,1770000642746,-250.0,0.00017099,2]
[404247885,1770000642756,-151.0,0.00017099,2]
[404247886,1770000642765,-500.0,0.00017099,2]
[404247887,1770000642774,-500.0,0.00017099,2]
[404247888,1770000642784,-250.0,0.00017099,2]
[404247889,1770000642793,-250.0,0.00017099,2]
[404247890,1770000642804,-151.0,0.00017099,2]
[404247891,1770000642814,-500.0,0.00017099,2]
[404247892,1770000642823,-151.0,0.00017099,2]
[404247893,1770000642832,-500.0,0.00017099,2]
[404247894,1770000642842,-151.0,0.00017099,2]
[404247895,1770000642851,-209.40437684,0.00017099,2]
[404247896,1770000642862,-500.0,0.00017099,2]
[404247897,1770000642871,-500.0,0.00017099,2]
[404247898,1770000642884,-500.0,0.00017099,2]
[404247899,1770000642894,-500.0,0.00017099,2]
[404247900,1770000642904,-500.0,0.00017099,2]
[404247901,1770000642913,-500.0,0.00017099,2]
[404247902,1770000642924,-500.0,0.00017099,2]
[404247903,1770000642935,-500.0,0.00017099,2]
[404247904,1770000642946,-500.0,0.00017099,2]
[404247905,1770000642955,-500.0,0.00017099,2]
[404247906,1770000642965,-344.38825217,0.00017099,2]
[404247907,1770000642975,-1428.38747117,0.00017099,2]
[404247908,1770000642987,-250.0,0.00017099,2]
[404247909,1770000642996,-250.0,0.00017099,2]
[404247910,1770000643006,-174.61919141,0.00017099,2]
[404247911,1770000643015,-250.0,0.00017099,2]
[404247912,1770000643024,-250.0,0.00017099,2]
[404247913,1770000643034,-250.0,0.00017099,2]
[404247914,1770000643043,-250.0,0.00017099,2]
[404247915,1770000643053,-250.0,0.00017099,2]
[404247916,1770000643062,-250.0,0.00017099,2]
[404247917,1770000643075,-250.0,0.00017099,2]
[404247918,1770000643084,-250.0,0.00017099,2]
[404247919,1770000643094,-250.0,0.00017099,2]
[404247920,1770000643104,-250.0,0.00017099,2]
[404247921,1770000643113,-500.0,0.00017099,2]
[404247922,1770000643123,-250.0,0.00017099,2]
[404247923,1770000643133,-250.0,0.00017099,2]
[404247924,1770000643142,-209.40437684,0.00017099,2]
[404247925,1770000643152,-500.0,0.00017099,2]
[404247927,1770000643163,-250.0,0.00017099,2]
[404247929,1770000643173,-250.0,0.00017099,2]
[404247931,1770000643183,-500.0,0.00017099,2]
[404247932,1770000643194,-500.0,0.00017099,2]
[404247933,1770000643204,-250.0,0.00017099,2]
[404247934,1770000643214,-500.0,0.00017099,2]
[404247935,1770000643224,-250.0,0.00017099,2]
[404247936,1770000643234,-500.0,0.00017099,2]
[404247937,1770000643243,-250.0,0.00017099,2]
[404247938,1770000643252,-578.20924308,0.00017099,2]
[404247939,1770000643266,-500.0,0.00017099,2]
[404247940,1770000643276,-250.0,0.00017099,2]
[404247941,1770000643286,-500.0,0.00017099,2]
[404247942,1770000643295,-250.0,0.00017099,2]
[404247943,1770000643305,-500.0,0.00017099,2]
[404247944,1770000643315,-250.0,0.00017099,2]
[404247945,1770000643325,-500.0,0.00017099,2]
[404247946,1770000643336,-500.0,0.00017099,2]
[404247947,1770000643347,-500.0,0.00017099,2]
[404247948,1770000643358,-500.0,0.00017099,2]
[404247949,1770000643369,-500.0,0.00017099,2]
[404247950,1770000643379,-500.0,0.00017099,2]
[404247951,1770000643389,-500.0,0.00017099,2]
[404247952,1770000643401,-500.0,0.00017099,2]
[404247953,1770000643411,-322.6107,0.00017099,2]
[404247954,1770000643420,-500.0,0.00017099,2]
[404247955,1770000643430,-500.0,0.00017099,2]
[404247956,1770000643440,-500.0,0.00017099,2]
[404247957,1770000643451,-500.0,0.00017099,2]
[404247958,1770000643464,-500.0,0.00017099,2]
[404247959,1770000643474,-879.69414454,0.00017099,2]
[404247960,1770000643484,-209.40437684,0.00017099,2]
[404247961,1770000643494,-500.0,0.00017099,2]
[404247962,1770000643504,-500.0,0.00017099,2]
[404247963,1770000643515,-500.0,0.00017099,2]
[404247964,1770000643526,-500.0,0.00017099,2]
[404247965,1770000643535,-500.0,0.00017099,2]
[404247966,1770000643544,-500.0,0.00017099,2]
[404247967,1770000643555,-500.0,0.00017099,2]
[404247968,1770000643564,-500.0,0.00017099,2]
[404247969,1770000643573,-500.0,0.00017099,2]
[404247970,1770000643583,-500.0,0.00017099,2]
[404247971,1770000643592,-500.0,0.00017099,2]
[404247972,1770000643602,-217.15233878,0.00017154,2]
[404247973,1770000643611,-244.94939722,0.00017191,2]
[404247974,1770000643621,-1510.0,0.000172,2]
[404247975,1770000643630,-225.18697532,0.00017209,2]
[404247976,1770000643642,-865.02843818,0.00017231,2]
[404247977,1770000643652,-163.0,0.00017235,2]
[404247978,1770000643662,-1000.0,0.0001726,2]
[404247979,1770000643673,-233.51889341,0.00017264,2]
[404247980,1770000643683,-1500.0,0.00017311,2]
[404247981,1770000643693,-542.63998213,0.00017311,2]
[404247982,1770000643703,-1500.0,0.00017311,2]
[404247983,1770000643713,-843.08326797,0.00017311,2]
[404247984,1770000643723,-1500.0,0.00017311,2]
[404247985,1770000643733,-1500.0,0.00017311,2]
[404247986,1770000643744,-1500.0,0.00017311,2]
[404247987,1770000643753,-1008.230722,0.00017311,2]
[404247988,1770000643763,-1002.56224964,0.00017311,2]
[404247989,1770000643772,-1500.0,0.00017311,2]
[404247990,1770000643781,-1500.0,0.00017311,2]
[404247991,1770000643790,-663.44066637,0.00017311,2]
[404247992,1770000643800,-1500.0,0.00017311,2]
[404247993,1770000643809,-1005.45817911,0.00017311,2]
[404247994,1770000643819,-1003.10188966,0.00017311,2]
[404247995,1770000643830,-502.69407289,0.00017311,2]
[404247996,1770000643842,-1122.87168328,0.00017311,2]
[404247997,1770000643852,-1002.13331368,0.00017311,2]
[404247998,1770000643861,-740.83933027,0.00017311,2]
[404247999,1770000643871,-1500.0,0.00017311,2]
[404248000,1770000643880,-1500.0,0.00017311,2]
[404248001,1770000643890,-503.56149344,0.00017311,2]
[404248002,1770000643900,-1001.51187031,0.00017311,2]
[404248003,1770000643909,-1500.0,0.00017311,2]
[404248004,1770000643919,-501.69538037,0.00017311,2]
[404248005,1770000643928,-1500.0,0.00017311,2]
[404248006,1770000643938,-645.60955598,0.00017311,2]
[404248007,1770000643947,-1276.88278142,0.00017311,2]
[404248009,1770000643956,-1500.0,0.00017311,2]
[404248010,1770000643966,-487.31307274,0.00017311,2]
[404248012,1770000643976,-1004.6853335,0.00017311,2]
[404248016,1770000643986,-242.15909246,0.00017319,2]
[404248017,1770000644190,-731.06,0.00017351,2]
[404248018,1770000644199,-159.04434353,0.00017355,2]
[404248019,1770000644208,-1410.0,0.00017356,2]
[404248020,1770000644218,-3497.391,0.00017356,2]
[404248021,1770000644227,-1338.357,0.00017356,2]
[404248022,1770000644236,-728.464,0.00017356,2]
[404248023,1770000644246,-1274.162,0.00017356,2]
[404248024,1770000644256,-161.033,0.00017356,2]
[404248025,1770000644267,-925.751,0.00017356,2]
[404248026,1770000644277,-1205.0,0.00017356,2]
[404248027,1770000644286,-151.0,0.00017356,2]
[404248028,1770000644297,-267.0,0.00017356,2]
[404248029,1770000644307,-6579.0,0.00017356,2]
[404248030,1770000644317,-3253.0,0.00017356,2]
[404248031,1770000644327,-2445.0,0.00017356,2]
[404248032,1770000644337,-180.25,0.0001737,2]
[404248033,1770000644347,-172.49,0.0001737,2]
[404248034,1770000644356,-303.13,0.0001737,2]
[404248035,1770000644365,-469.44,0.0001737,2]
[404248036,1770000644376,-180.25,0.0001737,2]
[404248037,1770000644387,-180.25,0.0001737,2]
[404248038,1770000644398,-1000.0,0.00017374,2]
[404248039,1770000644408,-1000.0,0.00017374,2]
[404248040,1770000644417,-1000.0,0.00017374,2]
[404248041,1770000644426,-251.11897888,0.00017374,2]
[404248042,1770000644435,-566.0,0.00017398,2]
[404248043,1770000644445,-7958.92687391,0.00017416,2]
[404248044,1770000644454,-11994.31318354,0.00017416,2]
[404248045,1770000644463,-260.4103811,0.00017429,2]
[404248046,1770000644472,-1000.0,0.00017449,2]
[404248047,1770000644481,-865.02843818,0.00017454,2]
[404248048,1770000644492,-500.0,0.00017471,2]
[404248049,1770000644502,-270.0455652,0.00017484,2]
[404248050,1770000644513,-1000.0,0.00017534,2]
[404248051,1770000644524,-280.03725112,0.00017539,2]
[404248052,1770000644534,-566.0,0.00017542,2]
[404248053,1770000644544,-566.0,0.00017556,2]
[404248054,1770000644556,-290.39862941,0.00017594,2]
[404248055,1770000644566,-1500.0,0.000176,2]
[404248056,1770000644575,-1899.6725397,0.000176,2]
[404248057,1770000644584,-2758.12238654,0.0001764,2]
[404248058,1770000644594,-5143.0,0.0001764,2]
[404248059,1770000644603,-175.0,0.00017644,2]
[404248060,1770000644613,-217.15233878,0.00017647,2]
[404248061,1770000644623,-1481.23780761,0.00017647,2]
[404248062,1770000644632,-181.08010149,0.00017647,2]
[404248063,1770000644643,-217.15233878,0.00017647,2]
[404248064,1770000644653,-301.1433787,0.00017649,2]
[404248065,1770000644662,-566.0,0.00017652,2]
[404248066,1770000644671,-250.0,0.00017665,2]
[404248067,1770000644682,-566.0,0.00017702,2]
[404248068,1770000644692,-25000.0,0.00017715,3]
[404248069,1770000644702,-25000.0,0.00017724,3]
[404248070,1770000644712,-25000.0,0.00017733,3]
[404248071,1770000644722,-5143.0,0.00017736,2]
[404248072,1770000644734,-25000.0,0.00017742,3]
[404248073,1770000644745,-25000.0,0.0001775,3]
[404248074,1770000644756,-25000.0,0.00017759,3]
[404248075,1770000644765,-773.23,0.00017761,2]
[404248076,1770000644775,-868.9,0.00017761,2]
[404248077,1770000644784,-25000.0,0.00017768,3]
[404248078,1770000644793,-25000.0,0.00017777,3]
[404248079,1770000644806,-433.0,0.00017777,2]
[404248080,1770000644815,-25000.0,0.00017786,3]
[404248081,1770000644824,-25000.0,0.00017794,3]
[404248082,1770000644833,-2834.0,0.000178,2]
[404248083,1770000644842,-154.87,0.000178,2]
[404248084,1770000644852,-25000.0,0.00017803,3]
[404248085,1770000644861,-247.85,0.00017807,2]
[404248086,1770000644873,-500.0,0.00017808,2]
[404248087,1770000644883,-1999.0,0.00017808,2]
[404248088,1770000644892,-25000.0,0.00017812,3]
[404248089,1770000644902,-2038.80471508,0.00017813,2]
[404248090,1770000644912,-2758.5657,0.00017813,2]
[404248091,1770000644923,-25000.0,0.00017821,3]
[404248092,1770000644933,-25000.0,0.0001783,3]
[404248093,1770000644942,-25000.0,0.00017838,3]
[404248094,1770000644951,-25000.0,0.00017847,3]
[404248095,1770000644961,-200.0,0.00017855,2]
[404248096,1770000644970,-433.0,0.00017856,2]
[404248097,1770000644980,-25000.0,0.00017856,3]
[404248098,1770000644989,-200.0,0.00017856,2]
[404248099,1770000644999,-200.0,0.00017856,2]
[404248100,1770000645008,-1001.61630428,0.00017859,2]
[404248101,1770000645017,-1001.65103435,0.00017859,2]
[404248102,1770000645027,-989.52141814,0.00017859,2]
[404248103,1770000645037,-1002.76473862,0.00017859,2]
[404248104,1770000645047,-501.37917865,0.00017859,2]
[404248105,1770000645060,-1128.18837233,0.00017859,2]
[404248107,1770000645069,-1447.23523297,0.00017859,2]
[404248108,1770000645078,-1502.53462592,0.00017859,2]
[404248109,1770000645087,-1501.57448357,0.00017859,2]
[404248110,1770000645097,-1504.86417643,0.00017859,2]
[404248111,1770000645106,-1502.03881526,0.00017859,2]
[404248112,1770000645116,-1503.16556405,0.00017859,2]
[404248113,1770000645125,-2001.81664462,0.00017859,2]
[404248114,1770000645135,-500.0,0.00017863,2]
[404248115,1770000645144,-25000.0,0.00017865,3]
[404248116,1770000645154,-298.56500065,0.00017872,2]
[404248117,1770000645163,-25000.0,0.00017874,3]
[404248118,1770000645172,-25000.0,0.00017882,3]
[404248119,1770000645181,-25000.0,0.00017891,3]
[404248120,1770000645191,-244.94939722,0.000179,2]
[404248121,1770000645200,-25000.0,0.000179,3]
[404248122,1770000645209,-7958.92687391,0.000179,2]
[404248123,1770000645219,-11994.31318354,0.000179,2]
[404248124,1770000645228,-178.1040154,0.000179,2]
[404248125,1770000645237,-8217.94244244,0.000179,3]
[404248126,1770000645247,-4241.65253838,0.000179,2]
[404248127,1770000645256,-991.87754644,0.000179,3]
[404248128,1770000645265,-10323.0,0.000179,2]
[404248129,1770000645275,-500.0,0.00017918,2]
[404248130,1770000645283,-390.301032,0.00017946,2]
[404248131,1770000645292,-506.1208044,0.00017972,2]
[404248132,1770000645304,-502.60776792,0.00017982,2]
[404248133,1770000645313,-348.13827783,0.00017984,2]
[404248134,1770000645323,-298.56500065,0.0001799,2]
[404248135,1770000645333,-298.56500065,0.0001799,2]
[404248136,1770000645342,-335838.3829859,0.00017992,2]
[404248137,1770000645351,-14114.1580198,0.00017992,2]
[404248138,1770000645360,-4864.3480061,0.00017992,2]
[404248139,1770000645370,-3030.7879071,0.00017992,2]
[404248140,1770000645379,-70382.3132696,0.00017992,2]
[404248141,1770000645387,-1324.159159,0.00017992,2]
[404248142,1770000645396,-17197.6484751,0.00017992,2]
[404248143,1770000645406,-150.0,0.00017999,2]
[404248144,1770000645415,-154.57158237,0.00017999,2]
[404248145,1770000645423,-299.809,0.00017999,2]
[404248146,1770000645432,-300.0,0.00017999,2]
[404248147,1770000645441,-301.83228006,0.00017999,2]
[404248148,1770000645450,-300.0,0.00017999,2]
[404248149,1770000645459,-300.0,0.00017999,2]
[404248150,1770000645469,-666.0,0.00017999,2]
[404248151,1770000645478,-300.0,0.00017999,2]
[404248152,1770000645487,-527536.38617113,0.00018,2]
[404248153,1770000645496,-467984.35129881,0.00018,2]
[404248154,1770000645505,-7500.21523255,0.00018,2]
[404248155,1770000645514,-2320929.36725022,0.00018,2]
[404248156,1770000645676,-597.032921,0.00018,2]
[404248157,1770000645692,-2299.1,0.00018,2]
[404248162,1770000645848,-1606.54,0.00015208,2]
[404248164,1770000645859,-151.0,0.00015887,2]
[404248166,1770000645868,-103.49274421,0.00018,2]
[404248168,1770000645879,-634.43867938,0.00018,2]
[404248177,1770000646498,-865.02843818,0.00017677,2]
[404248178,1770000646508,-134.97156182,0.00018,2]
[404248179,1770000646552,-568.318,0.00017356,2]
[404248180,1770000646562,-4331.682,0.00018,2]
[404248181,1770000646574,-7691.69999999,0.00018,2]
[404248182,1770000646762,-1622.21862791,0.00018,2]
[404248188,1770000889074,1167.0,0.0002111,30]
[404248201,1770001267327,1042.79,0.00012544,2]
[404248281,1770001574985,505.21,0.00015317,3]
[404248297,1770001595085,-479.38703831,0.00014273,2]
[404248322,1770001831438,-2225.9,0.00014273,2]
[404248323,1770001831451,-190.79256169,0.00014273,2]
[404248324,1770001831462,-129.33143831,0.00014273,2]
[404248325,1770001831475,-126.95583515,0.00014273,2]
[404248327,1770001831485,-289.14260659,0.0001437,2]
[404248328,1770001831497,-910.85739341,0.0001437,2]
[404248330,1770001831507,-150.0,0.00014372,2]
[404248331,1770001831517,-300.0,0.00014372,2]
[404248332,1770001831526,-516.44232677,0.00014373,2]
[404248333,1770001831540,-504.56243422,0.00014373,2]
[404248334,1770001831550,-118.70233608,0.00014373,2]
[404248335,1770001831564,-259.40505883,0.00014373,2]
[404248336,1770001831574,-500.25858274,0.00014373,2]
[404248337,1770001831583,-510.87393165,0.00014373,2]
[404248338,1770001831595,-500.72885739,0.00014373,2]
[404248339,1770001831604,-501.63214179,0.00014373,2]
[404248340,1770001831614,-501.92550309,0.00014373,2]
[404248341,1770001831624,-502.08630152,0.00014373,2]
[404248342,1770001831634,-500.0,0.00014373,2]
[404248343,1770001831645,-500.80142863,0.00014373,2]